[Event "*** SCC Grand Prix: Titled Tuesday Blitz"]
[Site "Chess.com"]
[Date "2020.08.11"]
[Round "7"]
[White "Kislov_Oleg"]
[Black "aNaartjieZA"]
[Result "1/2-1/2"]
[WhiteElo "2385"]
[BlackElo "2503"]
[TimeControl "180+1"]
[EndTime "11:18:30 PDT"]
[Termination "Game drawn - insufficient material"]

1. e4 {[%clk 0:03:00.9]} 1... e6 {[%clk 0:03:00.1]} 2. d4 {[%clk 0:02:58.8]}
2... d5 {[%clk 0:03:00.3]} 3. Nc3 {[%clk 0:02:59.5]} 3... Bb4 {[%clk 0:02:59.7]}
4. exd5 {[%clk 0:02:59.4]} 4... exd5 {[%clk 0:02:59.7]} 5. Bd3 {[%clk
0:02:59.7]} 5... Nc6 {[%clk 0:02:59.1]} 6. Ne2 {[%clk 0:02:59.7]} 6... Nge7
{[%clk 0:02:58.2]} 7. O-O {[%clk 0:02:56.2]} 7... a6 {[%clk 0:02:54]} 8. Bg5
{[%clk 0:02:52.4]} 8... f6 {[%clk 0:02:53.3]} 9. Bh4 {[%clk 0:02:51.1]} 9... Be6
{[%clk 0:02:50.7]} 10. Nf4 {[%clk 0:02:25.1]} 10... Bf7 {[%clk 0:02:49.8]} 11.
Nh5 {[%clk 0:02:24.2]} 11... O-O {[%clk 0:02:44.5]} 12. Bxf6 {[%clk 0:01:41.5]}
12... Bxh5 {[%clk 0:02:43.5]} 13. Bxe7 {[%clk 0:01:13.6]} 13... Bxd1 {[%clk
0:02:41.8]} 14. Bxd8 {[%clk 0:01:13.4]} 14... Bxc2 {[%clk 0:02:39.6]} 15. Bxc2
{[%clk 0:01:10]} 15... Raxd8 {[%clk 0:02:38.8]} 16. Bb3 {[%clk 0:01:05.9]} 16...
Bxc3 {[%clk 0:02:38.6]} 17. bxc3 {[%clk 0:01:05.9]} 17... Na5 {[%clk 0:02:38.7]}
18. Rfe1 {[%clk 0:01:04]} 18... c6 {[%clk 0:02:36.2]} 19. Re7 {[%clk 0:00:55.4]}
19... Rf7 {[%clk 0:02:34.3]} 20. Rae1 {[%clk 0:00:55]} 20... Nxb3 {[%clk
0:02:30.5]} 21. axb3 {[%clk 0:00:54.8]} 21... Kf8 {[%clk 0:02:30.3]} 22. R7e5
{[%clk 0:00:51.6]} 22... g6 {[%clk 0:02:29.9]} 23. b4 {[%clk 0:00:50.5]} 23...
Ra8 {[%clk 0:02:28.4]} 24. h4 {[%clk 0:00:47.6]} 24... a5 {[%clk 0:02:26.6]} 25.
bxa5 {[%clk 0:00:47.9]} 25... Rxa5 {[%clk 0:02:26.3]} 26. Re8+ {[%clk
0:00:48.8]} 26... Kg7 {[%clk 0:02:26]} 27. g3 {[%clk 0:00:38.3]} 27... Ra3
{[%clk 0:02:25.2]} 28. R1e3 {[%clk 0:00:38]} 28... h5 {[%clk 0:02:21.8]} 29. Kg2
{[%clk 0:00:36.4]} 29... Rb3 {[%clk 0:02:20.6]} 30. f4 {[%clk 0:00:34.6]} 30...
Rf6 {[%clk 0:02:14.8]} 31. R8e7+ {[%clk 0:00:32.7]} 31... Rf7 {[%clk 0:02:14.4]}
32. Re8 {[%clk 0:00:32.3]} 32... Rf6 {[%clk 0:02:07]} 33. Kf3 {[%clk 0:00:32.2]}
33... b5 {[%clk 0:02:06.6]} 34. R8e7+ {[%clk 0:00:30.8]} 34... Rf7 {[%clk
0:02:04.4]} 35. Re8 {[%clk 0:00:29.6]} 35... b4 {[%clk 0:02:03.1]} 36. cxb4
{[%clk 0:00:25.5]} 36... Rxb4 {[%clk 0:02:03.1]} 37. Rc8 {[%clk 0:00:25.7]}
37... Rxd4 {[%clk 0:02:01]} 38. Rxc6 {[%clk 0:00:25.4]} 38... Rc4 {[%clk
0:01:58.3]} 39. Rxc4 {[%clk 0:00:23.3]} 39... dxc4 {[%clk 0:01:58.5]} 40. Rc3
{[%clk 0:00:21.6]} 40... Rc7 {[%clk 0:01:57.3]} 41. g4 {[%clk 0:00:11.4]} 41...
hxg4+ {[%clk 0:01:55.3]} 42. Kxg4 {[%clk 0:00:12.3]} 42... Kf6 {[%clk
0:01:55.4]} 43. Kf3 {[%clk 0:00:09.7]} 43... Kf5 {[%clk 0:01:54.6]} 44. Ra3
{[%clk 0:00:09.7]} 44... c3 {[%clk 0:01:53.8]} 45. Ra5+ {[%clk 0:00:09.7]} 45...
Kf6 {[%clk 0:01:53.6]} 46. Ra6+ {[%clk 0:00:10.1]} 46... Kg7 {[%clk 0:01:52.9]}
47. Ra1 {[%clk 0:00:06.6]} 47... c2 {[%clk 0:01:50.9]} 48. Rc1 {[%clk
0:00:05.7]} 48... Kf6 {[%clk 0:01:50.4]} 49. Ke4 {[%clk 0:00:06.2]} 49... Rc4+
{[%clk 0:01:47.7]} 50. Kd3 {[%clk 0:00:04.6]} 50... Rxf4 {[%clk 0:01:47.8]} 51.
Rxc2 {[%clk 0:00:04.1]} 51... Rxh4 {[%clk 0:01:47.8]} 52. Ke3 {[%clk 0:00:04.4]}
52... Rb4 {[%clk 0:01:44.9]} 53. Rc6+ {[%clk 0:00:04.1]} 53... Kg5 {[%clk
0:01:44.8]} 54. Kf2 {[%clk 0:00:04.5]} 54... Rg4 {[%clk 0:01:43.6]} 55. Kf3
{[%clk 0:00:04.7]} 55... Rf4+ {[%clk 0:01:43.5]} 56. Kg3 {[%clk 0:00:04.3]}
56... Rb4 {[%clk 0:01:42.8]} 57. Rc5+ {[%clk 0:00:04.3]} 57... Kh6 {[%clk
0:01:42]} 58. Kh3 {[%clk 0:00:05]} 58... g5 {[%clk 0:01:42]} 59. Rc6+ {[%clk
0:00:04.7]} 59... Kh5 {[%clk 0:01:42.2]} 60. Rc8 {[%clk 0:00:05.4]} 60... Rb3+
{[%clk 0:01:42.4]} 61. Kg2 {[%clk 0:00:05.7]} 61... Kh4 {[%clk 0:01:41.8]} 62.
Rc4+ {[%clk 0:00:04.8]} 62... g4 {[%clk 0:01:41.6]} 63. Rc2 {[%clk 0:00:05.3]}
63... Ra3 {[%clk 0:01:38.8]} 64. Rb2 {[%clk 0:00:05.4]} 64... Rg3+ {[%clk
0:01:37.8]} 65. Kh2 {[%clk 0:00:05.8]} 65... Rh3+ {[%clk 0:01:37.7]} 66. Kg2
{[%clk 0:00:06.2]} 66... Rc3 {[%clk 0:01:37.2]} 67. Kh2 {[%clk 0:00:06.2]} 67...
Kg5 {[%clk 0:01:35.7]} 68. Kg2 {[%clk 0:00:06.4]} 68... Rc4 {[%clk 0:01:34.8]}
69. Rb5+ {[%clk 0:00:06.2]} 69... Kf4 {[%clk 0:01:34.7]} 70. Rb2 {[%clk
0:00:07.1]} 70... Rd4 {[%clk 0:01:32.5]} 71. Rf2+ {[%clk 0:00:07.1]} 71... Kg5
{[%clk 0:01:32]} 72. Ra2 {[%clk 0:00:08]} 72... Kf4 {[%clk 0:01:31.1]} 73. Rf2+
{[%clk 0:00:07.5]} 73... Ke3 {[%clk 0:01:31.2]} 74. Ra2 {[%clk 0:00:06.8]} 74...
Rf4 {[%clk 0:01:30]} 75. Kg3 {[%clk 0:00:06.1]} 75... Rb4 {[%clk 0:01:27.1]} 76.
Ra3+ {[%clk 0:00:06.1]} 76... Ke2 {[%clk 0:01:27.4]} 77. Ra8 {[%clk 0:00:05.8]}
77... Ke3 {[%clk 0:01:24.9]} 78. Rg8 {[%clk 0:00:05.2]} 78... Re4 {[%clk
0:01:24.8]} 79. Rxg4 {[%clk 0:00:05.1]} 79... Rxg4+ {[%clk 0:01:24.9]} 80. Kxg4
{[%clk 0:00:05.5]} 1/2-1/2

[Event "*** SCC Grand Prix: Titled Tuesday Blitz"]
[Site "Chess.com"]
[Date "2020.08.11"]
[Round "7"]
[White "tteshan"]
[Black "Tsyhanchuk_Stanislav"]
[Result "0-1"]
[WhiteElo "2233"]
[BlackElo "2377"]
[TimeControl "180+1"]
[EndTime "11:18:30 PDT"]
[Termination "Tsyhanchuk_Stanislav won by resignation"]

1. e4 {[%clk 0:02:50.7]} 1... c5 {[%clk 0:03:00.1]} 2. Nf3 {[%clk 0:02:47.8]}
2... Nc6 {[%clk 0:03:00.4]} 3. d4 {[%clk 0:02:42.6]} 3... cxd4 {[%clk
0:03:01.3]} 4. Nxd4 {[%clk 0:02:43.1]} 4... Qb6 {[%clk 0:03:01.7]} 5. Nb3 {[%clk
0:02:39.7]} 5... Nf6 {[%clk 0:03:00.5]} 6. Be3 {[%clk 0:02:38.8]} 6... Qc7
{[%clk 0:02:59.7]} 7. f3 {[%clk 0:02:35.9]} 7... e6 {[%clk 0:02:59.4]} 8. c4
{[%clk 0:02:32.5]} 8... Bb4+ {[%clk 0:02:54.1]} 9. Nc3 {[%clk 0:02:29.6]} 9...
O-O {[%clk 0:02:48.5]} 10. Be2 {[%clk 0:02:26.6]} 10... d5 {[%clk 0:02:44]} 11.
exd5 {[%clk 0:02:22.2]} 11... exd5 {[%clk 0:02:43.3]} 12. cxd5 {[%clk
0:02:22.2]} 12... Rd8 {[%clk 0:02:41.1]} 13. O-O {[%clk 0:02:15]} 13... Bxc3
{[%clk 0:02:39]} 14. bxc3 {[%clk 0:02:10.4]} 14... Nxd5 {[%clk 0:02:38.6]} 15.
Qc1 {[%clk 0:02:10.2]} 15... Nxe3 {[%clk 0:02:37.5]} 16. Qxe3 {[%clk 0:02:09.7]}
16... Qe5 {[%clk 0:02:35.9]} 17. Qxe5 {[%clk 0:02:06.5]} 17... Nxe5 {[%clk
0:02:36.8]} 18. Rad1 {[%clk 0:02:06.5]} 18... Be6 {[%clk 0:02:35.4]} 19. Nc5
{[%clk 0:02:02.9]} 19... Bxa2 {[%clk 0:02:22.2]} 20. Nxb7 {[%clk 0:02:01.9]}
20... Rxd1 {[%clk 0:02:18.7]} 21. Rxd1 {[%clk 0:02:01.5]} 21... Rb8 {[%clk
0:02:12.9]} 22. f4 {[%clk 0:01:57.8]} 22... Ng6 {[%clk 0:02:08.6]} 23. Bf3
{[%clk 0:01:27.1]} 23... Nxf4 {[%clk 0:01:59.7]} 24. Ra1 {[%clk 0:01:26.8]}
24... Bd5 {[%clk 0:01:58.3]} 25. Bxd5 {[%clk 0:01:17.3]} 25... Nxd5 {[%clk
0:01:59.2]} 26. Rxa7 {[%clk 0:01:17.6]} 26... Nxc3 {[%clk 0:01:59]} 27. Nd6
{[%clk 0:01:13.8]} 27... Rf8 {[%clk 0:01:54.7]} 28. h3 {[%clk 0:01:11.9]} 28...
g6 {[%clk 0:01:52.2]} 29. Kh2 {[%clk 0:01:09]} 29... Kg7 {[%clk 0:01:47.7]} 30.
Rc7 {[%clk 0:01:03.5]} 30... Nd5 {[%clk 0:01:42.5]} 31. Rc5 {[%clk 0:01:02.8]}
31... Ne7 {[%clk 0:01:38.5]} 32. Rc7 {[%clk 0:01:02]} 32... Ng8 {[%clk 0:01:33]}
33. Kh1 {[%clk 0:00:58.4]} 33... Nf6 {[%clk 0:01:32.5]} 34. Kh2 {[%clk
0:00:56.2]} 34... Ne8 {[%clk 0:01:32.1]} 35. Nxe8+ {[%clk 0:00:56]} 35... Rxe8
{[%clk 0:01:33]} 36. Ra7 {[%clk 0:00:55.4]} 36... Re3 {[%clk 0:01:32.3]} 37. Rb7
{[%clk 0:00:54.6]} 37... h5 {[%clk 0:01:31.8]} 38. h4 {[%clk 0:00:53.1]} 38...
Kf6 {[%clk 0:01:25.5]} 39. g3 {[%clk 0:00:52.6]} 39... Ke6 {[%clk 0:01:19.5]}
40. Ra7 {[%clk 0:00:49.4]} 40... f6 {[%clk 0:01:13.8]} 41. Ra6+ {[%clk
0:00:48.9]} 41... Kf5 {[%clk 0:01:13.5]} 42. Ra4 {[%clk 0:00:48.8]} 42... g5
{[%clk 0:01:11.5]} 43. hxg5 {[%clk 0:00:47.8]} 43... fxg5 {[%clk 0:01:08.7]} 44.
Ra5+ {[%clk 0:00:47.4]} 44... Re5 {[%clk 0:01:05.1]} 45. Ra3 {[%clk 0:00:44.4]}
45... Re4 {[%clk 0:01:03.7]} 46. Kg2 {[%clk 0:00:43.9]} 46... Kg4 {[%clk
0:01:02]} 47. Rb3 {[%clk 0:00:34.2]} 47... Re2+ {[%clk 0:00:59.3]} 48. Kf1
{[%clk 0:00:34.4]} 48... Ra2 {[%clk 0:00:58.2]} 49. Rc3 {[%clk 0:00:29.8]} 49...
Kh3 {[%clk 0:00:45.7]} 50. Rb3 {[%clk 0:00:29.6]} 50... g4 {[%clk 0:00:37.6]}
51. Rb5 {[%clk 0:00:23.2]} 51... Kxg3 {[%clk 0:00:32.6]} 52. Rxh5 {[%clk
0:00:23.2]} 52... Ra1+ {[%clk 0:00:32.7]} 53. Ke2 {[%clk 0:00:23.1]} 53... Kg2
{[%clk 0:00:32.9]} 54. Rg5 {[%clk 0:00:23.1]} 54... g3 {[%clk 0:00:32.3]} 55.
Rg7 {[%clk 0:00:21.3]} 55... Ra2+ {[%clk 0:00:31.2]} 56. Ke3 {[%clk 0:00:21.1]}
56... Rf2 {[%clk 0:00:28.5]} 57. Rg6 {[%clk 0:00:19.1]} 57... Rf7 {[%clk
0:00:27.9]} 58. Rg8 {[%clk 0:00:15.7]} 58... Kh2 {[%clk 0:00:27.6]} 59. Rh8+
{[%clk 0:00:15.2]} 59... Kg1 {[%clk 0:00:27.4]} 60. Rg8 {[%clk 0:00:15.3]} 60...
g2 {[%clk 0:00:27.3]} 61. Ke2 {[%clk 0:00:14.3]} 61... Rf5 {[%clk 0:00:24.6]}
62. Ke3 {[%clk 0:00:14.1]} 62... Kf1 {[%clk 0:00:22.6]} 0-1

[Event "*** SCC Grand Prix: Titled Tuesday Blitz"]
[Site "Chess.com"]
[Date "2020.08.11"]
[Round "7"]
[White "Chessalary"]
[Black "creativity"]
[Result "1-0"]
[WhiteElo "2289"]
[BlackElo "2006"]
[TimeControl "180+1"]
[EndTime "11:18:31 PDT"]
[Termination "Chessalary won on time"]

1. e4 {[%clk 0:03:00.9]} 1... e5 {[%clk 0:02:58.5]} 2. Nf3 {[%clk 0:02:58.6]}
2... Nc6 {[%clk 0:02:58.1]} 3. Bc4 {[%clk 0:02:58.7]} 3... Nf6 {[%clk
0:02:57.7]} 4. d3 {[%clk 0:02:58.5]} 4... Be7 {[%clk 0:02:57.4]} 5. c3 {[%clk
0:02:58.8]} 5... O-O {[%clk 0:02:55.5]} 6. O-O {[%clk 0:02:58.9]} 6... d6 {[%clk
0:02:54.9]} 7. h3 {[%clk 0:02:59]} 7... Na5 {[%clk 0:02:45.9]} 8. Bb5 {[%clk
0:02:59.1]} 8... a6 {[%clk 0:02:45.9]} 9. Ba4 {[%clk 0:02:59.6]} 9... b5 {[%clk
0:02:45.9]} 10. Bc2 {[%clk 0:03:00]} 10... Bb7 {[%clk 0:02:43.4]} 11. Nbd2
{[%clk 0:02:57.1]} 11... c5 {[%clk 0:02:39.4]} 12. Re1 {[%clk 0:02:57.3]} 12...
Nc6 {[%clk 0:02:32.9]} 13. Nf1 {[%clk 0:02:53.9]} 13... Re8 {[%clk 0:02:31.1]}
14. Ne3 {[%clk 0:02:52.9]} 14... h6 {[%clk 0:02:28.4]} 15. Nf5 {[%clk
0:02:53.1]} 15... Bf8 {[%clk 0:02:28.2]} 16. Nh2 {[%clk 0:02:51.4]} 16... d5
{[%clk 0:02:27.8]} 17. Qf3 {[%clk 0:02:43.5]} 17... dxe4 {[%clk 0:02:20.8]} 18.
dxe4 {[%clk 0:02:44.4]} 18... Ne7 {[%clk 0:02:17.9]} 19. Nxh6+ {[%clk
0:02:40.7]} 19... gxh6 {[%clk 0:02:14.8]} 20. Qxf6 {[%clk 0:02:41]} 20... Ng6
{[%clk 0:02:05.5]} 21. Qf3 {[%clk 0:02:36.2]} 21... Bg7 {[%clk 0:01:56.5]} 22.
Ng4 {[%clk 0:02:28.1]} 22... Qh4 {[%clk 0:01:28.8]} 23. Kh2 {[%clk 0:02:07.4]}
23... Bc8 {[%clk 0:01:26]} 24. Ne3 {[%clk 0:01:40.2]} 24... Nf4 {[%clk
0:00:51.6]} 25. Nf5 {[%clk 0:01:36.9]} 25... Bxf5 {[%clk 0:00:50.1]} 26. exf5
{[%clk 0:01:37.8]} 26... Bf6 {[%clk 0:00:44.8]} 27. Bxf4 {[%clk 0:01:34.9]}
27... exf4 {[%clk 0:00:44.3]} 28. Rad1 {[%clk 0:01:25.1]} 28... Rad8 {[%clk
0:00:38.7]} 29. Be4 {[%clk 0:01:13.8]} 29... Re5 {[%clk 0:00:22.7]} 30. Rxd8+
{[%clk 0:01:11.8]} 30... Bxd8 {[%clk 0:00:22.1]} 31. Rd1 {[%clk 0:00:57.6]}
31... Qe7 {[%clk 0:00:19]} 32. Qxf4 {[%clk 0:00:52.3]} 32... Rxe4 {[%clk
0:00:18.5]} 33. Rxd8+ {[%clk 0:00:50.3]} 33... Kg7 {[%clk 0:00:17.1]} 34. Qg3+
{[%clk 0:00:49.3]} 34... Kf6 {[%clk 0:00:16.8]} 35. Rd6+ {[%clk 0:00:47.1]}
35... Kxf5 {[%clk 0:00:16]} 36. Rxh6 {[%clk 0:00:46.6]} 36... Qg5 {[%clk
0:00:13.4]} 37. Qf3+ {[%clk 0:00:41.8]} 37... Qf4+ {[%clk 0:00:13.3]} 38. Qxf4+
{[%clk 0:00:40.3]} 38... Rxf4 {[%clk 0:00:13.3]} 39. Rh5+ {[%clk 0:00:40.4]}
39... Kg6 {[%clk 0:00:12.6]} 40. Rxc5 {[%clk 0:00:38.3]} 40... Rxf2 {[%clk
0:00:12.5]} 41. a4 {[%clk 0:00:36.4]} 41... bxa4 {[%clk 0:00:11.5]} 42. Ra5
{[%clk 0:00:36.1]} 42... Rxb2 {[%clk 0:00:11.4]} 43. Rxa6+ {[%clk 0:00:36.4]}
43... f6 {[%clk 0:00:10.7]} 44. Rxa4 {[%clk 0:00:37.3]} 44... Rc2 {[%clk
0:00:09.6]} 45. Rc4 {[%clk 0:00:37.2]} 45... Kg5 {[%clk 0:00:08.8]} 46. Kg3
{[%clk 0:00:37.6]} 46... f5 {[%clk 0:00:08.7]} 47. h4+ {[%clk 0:00:37.4]} 47...
Kh5 {[%clk 0:00:07.4]} 48. Kh3 {[%clk 0:00:37.9]} 48... Kg6 {[%clk 0:00:07]} 49.
Rc5 {[%clk 0:00:38.2]} 49... Kf6 {[%clk 0:00:06.7]} 50. g4 {[%clk 0:00:38.5]}
50... fxg4+ {[%clk 0:00:06.5]} 51. Kxg4 {[%clk 0:00:39]} 51... Rc1 {[%clk
0:00:05.9]} 52. h5 {[%clk 0:00:38]} 52... Rg1+ {[%clk 0:00:05.2]} 53. Kf4 {[%clk
0:00:38.4]} 53... Rf1+ {[%clk 0:00:04.5]} 54. Ke4 {[%clk 0:00:38.4]} 54... Re1+
{[%clk 0:00:04.1]} 55. Kd3 {[%clk 0:00:38.5]} 55... Rd1+ {[%clk 0:00:03.5]} 56.
Ke2 {[%clk 0:00:37.2]} 56... Rh1 {[%clk 0:00:02.8]} 57. Kd3 {[%clk 0:00:36.3]}
57... Ke6 {[%clk 0:00:02]} 58. h6 {[%clk 0:00:34.7]} 58... Kd6 {[%clk
0:00:01.6]} 59. Ra5 {[%clk 0:00:34.8]} 59... Kc6 {[%clk 0:00:01.5]} 60. Ra6+
{[%clk 0:00:32.9]} 1-0

[Event "*** SCC Grand Prix: Titled Tuesday Blitz"]
[Site "Chess.com"]
[Date "2020.08.11"]
[Round "7"]
[White "tlomigtlis"]
[Black "poppy73"]
[Result "1-0"]
[WhiteElo "2423"]
[BlackElo "2246"]
[TimeControl "180+1"]
[EndTime "11:18:36 PDT"]
[Termination "tlomigtlis won on time"]

1. d4 {[%clk 0:03:00.9]} 1... Nf6 {[%clk 0:02:59.3]} 2. c4 {[%clk 0:03:01]} 2...
g6 {[%clk 0:02:59.9]} 3. Nc3 {[%clk 0:03:00.4]} 3... Bg7 {[%clk 0:03:00.5]} 4.
g3 {[%clk 0:03:00.4]} 4... d6 {[%clk 0:03:01]} 5. Bg2 {[%clk 0:03:00.7]} 5...
O-O {[%clk 0:03:01.2]} 6. Nf3 {[%clk 0:03:00.9]} 6... Nc6 {[%clk 0:02:59.8]} 7.
O-O {[%clk 0:03:00.9]} 7... Bg4 {[%clk 0:03:00.3]} 8. d5 {[%clk 0:03:00.7]} 8...
Na5 {[%clk 0:02:58.8]} 9. Nd2 {[%clk 0:03:00.6]} 9... c5 {[%clk 0:02:59]} 10. h3
{[%clk 0:02:57.7]} 10... Bd7 {[%clk 0:02:57.6]} 11. Qc2 {[%clk 0:02:57.8]} 11...
a6 {[%clk 0:02:57.6]} 12. b3 {[%clk 0:02:57.6]} 12... b5 {[%clk 0:02:56.1]} 13.
Bb2 {[%clk 0:02:57.1]} 13... Rb8 {[%clk 0:02:53.3]} 14. Rab1 {[%clk 0:02:56.9]}
14... e5 {[%clk 0:02:45]} 15. dxe6 {[%clk 0:02:54.3]} 15... fxe6 {[%clk
0:02:42]} 16. cxb5 {[%clk 0:02:38.9]} 16... axb5 {[%clk 0:02:40.6]} 17. Nce4
{[%clk 0:02:36.2]} 17... Nxe4 {[%clk 0:02:27.8]} 18. Nxe4 {[%clk 0:02:33.2]}
18... Bxb2 {[%clk 0:02:24.9]} 19. Qxb2 {[%clk 0:02:34.1]} 19... Nb7 {[%clk
0:02:19.2]} 20. Rbc1 {[%clk 0:02:27.9]} 20... Qe7 {[%clk 0:02:16.6]} 21. b4
{[%clk 0:02:23.5]} 21... c4 {[%clk 0:02:12.9]} 22. Rfd1 {[%clk 0:02:15.1]} 22...
d5 {[%clk 0:02:11.2]} 23. Nc3 {[%clk 0:02:15.2]} 23... Bc6 {[%clk 0:01:57.8]}
24. e4 {[%clk 0:01:54.1]} 24... dxe4 {[%clk 0:01:52.5]} 25. Nxe4 {[%clk
0:01:55]} 25... Bd5 {[%clk 0:01:49.3]} 26. Qe5 {[%clk 0:01:45.4]} 26... Rbd8
{[%clk 0:01:38.7]} 27. a3 {[%clk 0:01:38.3]} 27... Rf5 {[%clk 0:01:34.6]} 28.
Qd4 {[%clk 0:01:31.2]} 28... Nd6 {[%clk 0:00:48.8]} 29. g4 {[%clk 0:00:51.9]}
29... Rf4 {[%clk 0:00:32.9]} 30. Qc5 {[%clk 0:00:33]} 30... Bxe4 {[%clk
0:00:24.6]} 31. Rd4 {[%clk 0:00:32.9]} 31... Bxg2 {[%clk 0:00:08.1]} 32. Rxf4
{[%clk 0:00:28.9]} 32... Bd5 {[%clk 0:00:08.1]} 33. Re1 {[%clk 0:00:25.6]} 33...
Rf8 {[%clk 0:00:06.7]} 34. Qe3 {[%clk 0:00:13.2]} 34... Rxf4 {[%clk 0:00:06]}
35. Qxf4 {[%clk 0:00:14.1]} 35... Qf8 {[%clk 0:00:06.1]} 36. Qe3 {[%clk
0:00:11.8]} 36... Qf3 {[%clk 0:00:05.3]} 37. Qxf3 {[%clk 0:00:11.8]} 37... Bxf3
{[%clk 0:00:04.9]} 38. Rxe6 {[%clk 0:00:12.1]} 38... Ne4 {[%clk 0:00:05.1]} 39.
Re8+ {[%clk 0:00:10.4]} 39... Kf7 {[%clk 0:00:04.6]} 40. Rc8 {[%clk 0:00:10.2]}
40... c3 {[%clk 0:00:04.5]} 41. Kf1 {[%clk 0:00:09.8]} 41... Bd1 {[%clk
0:00:03.8]} 42. Ke1 {[%clk 0:00:08.5]} 42... c2 {[%clk 0:00:04.2]} 43. f3 {[%clk
0:00:08.4]} 43... Nd6 {[%clk 0:00:03.6]} 44. Rc7+ {[%clk 0:00:07.4]} 44... Ke6
{[%clk 0:00:03.9]} 45. Kd2 {[%clk 0:00:08.3]} 45... Nc4+ {[%clk 0:00:04]} 46.
Kc1 {[%clk 0:00:06.1]} 46... Nxa3 {[%clk 0:00:04.1]} 47. Rc3 {[%clk 0:00:05.9]}
47... Nc4 {[%clk 0:00:04]} 48. Rd3 {[%clk 0:00:06.2]} 48... Ne5 {[%clk
0:00:03.8]} 49. Re3 {[%clk 0:00:06.2]} 49... Kd5 {[%clk 0:00:03.6]} 50. f4
{[%clk 0:00:06.2]} 50... Nc4 {[%clk 0:00:03]} 51. Re1 {[%clk 0:00:04.7]} 1-0

[Event "*** SCC Grand Prix: Titled Tuesday Blitz"]
[Site "Chess.com"]
[Date "2020.08.11"]
[Round "7"]
[White "zmarian"]
[Black "Unknown_IM"]
[Result "1/2-1/2"]
[WhiteElo "2195"]
[BlackElo "2370"]
[TimeControl "180+1"]
[EndTime "11:18:38 PDT"]
[Termination "Game drawn by repetition"]

1. g3 {[%clk 0:03:00.9]} 1... g6 {[%clk 0:02:58.1]} 2. Bg2 {[%clk 0:02:59.7]}
2... Bg7 {[%clk 0:02:58.2]} 3. Nf3 {[%clk 0:02:59.7]} 3... Nf6 {[%clk
0:02:58.8]} 4. O-O {[%clk 0:02:58.8]} 4... O-O {[%clk 0:02:59.2]} 5. d3 {[%clk
0:02:58.7]} 5... d6 {[%clk 0:02:59.5]} 6. Nbd2 {[%clk 0:02:59.2]} 6... c5 {[%clk
0:02:59.8]} 7. c4 {[%clk 0:02:58.5]} 7... Nc6 {[%clk 0:03:00.2]} 8. a3 {[%clk
0:02:58.5]} 8... Bd7 {[%clk 0:03:00.3]} 9. Rb1 {[%clk 0:02:58.4]} 9... Rb8
{[%clk 0:02:59.4]} 10. b4 {[%clk 0:02:57.7]} 10... cxb4 {[%clk 0:03:00]} 11.
axb4 {[%clk 0:02:57.3]} 11... a6 {[%clk 0:03:00.4]} 12. e4 {[%clk 0:02:53.1]}
12... b5 {[%clk 0:03:00]} 13. cxb5 {[%clk 0:02:47.4]} 13... axb5 {[%clk
0:03:00.9]} 14. Bb2 {[%clk 0:02:44]} 14... Ra8 {[%clk 0:02:55.9]} 15. Bc3 {[%clk
0:02:41.1]} 15... Ra3 {[%clk 0:02:52.6]} 16. Rb3 {[%clk 0:02:36.9]} 16... Qa8
{[%clk 0:02:48.9]} 17. d4 {[%clk 0:02:35.6]} 17... Bg4 {[%clk 0:02:44.4]} 18.
Qb1 {[%clk 0:02:22.9]} 18... Qa4 {[%clk 0:02:41.9]} 19. h3 {[%clk 0:02:14.9]}
19... Bxf3 {[%clk 0:02:40.3]} 20. Bxf3 {[%clk 0:02:11]} 20... Rc8 {[%clk
0:02:37]} 21. Rxa3 {[%clk 0:01:58]} 21... Qxa3 {[%clk 0:02:36.7]} 22. Qb3 {[%clk
0:01:57.8]} 22... Ra8 {[%clk 0:02:00.4]} 23. Qxa3 {[%clk 0:01:56]} 23... Rxa3
{[%clk 0:02:01.3]} 24. Rc1 {[%clk 0:01:54.6]} 24... Ne8 {[%clk 0:00:48.1]} 25.
e5 {[%clk 0:01:52.9]} 25... Nd8 {[%clk 0:00:35]} 26. Bb2 {[%clk 0:01:13.8]}
26... Ra2 {[%clk 0:00:29.1]} 27. Rc8 {[%clk 0:01:13.1]} 27... Rxb2 {[%clk
0:00:29.3]} 28. Rxd8 {[%clk 0:01:12.8]} 28... Rxd2 {[%clk 0:00:28.8]} 29. Rxe8+
{[%clk 0:01:12.5]} 29... Bf8 {[%clk 0:00:29.4]} 30. exd6 {[%clk 0:01:12.3]}
30... exd6 {[%clk 0:00:30.3]} 31. Bc6 {[%clk 0:01:12]} 31... Rxd4 {[%clk
0:00:28.2]} 32. Bxb5 {[%clk 0:01:08.8]} 32... Rxb4 {[%clk 0:00:28.4]} 33. Bc6
{[%clk 0:01:07.8]} 33... Kg7 {[%clk 0:00:28.2]} 34. Rd8 {[%clk 0:01:05]} 34...
Rd4 {[%clk 0:00:21.1]} 35. Kg2 {[%clk 0:01:03.3]} 35... Be7 {[%clk 0:00:17.9]}
36. Rd7 {[%clk 0:01:03.1]} 36... Kf6 {[%clk 0:00:14.9]} 37. Bb5 {[%clk
0:01:00.4]} 37... Ke6 {[%clk 0:00:14.3]} 38. Rb7 {[%clk 0:00:59.2]} 38... Bf6
{[%clk 0:00:13.5]} 39. Be8 {[%clk 0:00:57.5]} 39... Be7 {[%clk 0:00:12.8]} 40.
Bd7+ {[%clk 0:00:52.5]} 40... Kf6 {[%clk 0:00:11.7]} 41. Be8 {[%clk 0:00:49.4]}
41... Rd2 {[%clk 0:00:11.6]} 42. Rb6 {[%clk 0:00:37.7]} 42... Rc2 {[%clk
0:00:07.3]} 43. Rc6 {[%clk 0:00:36.4]} 43... Rd2 {[%clk 0:00:05.8]} 44. Ra6
{[%clk 0:00:35.7]} 44... Rb2 {[%clk 0:00:05.6]} 45. Rc6 {[%clk 0:00:35.2]} 45...
Rb8 {[%clk 0:00:06]} 46. Bd7 {[%clk 0:00:34.4]} 46... Rd8 {[%clk 0:00:06.4]} 47.
Bg4 {[%clk 0:00:32.4]} 47... h5 {[%clk 0:00:04.9]} 48. Bf3 {[%clk 0:00:31.7]}
48... Kg7 {[%clk 0:00:04]} 49. Bd5 {[%clk 0:00:31.3]} 49... Kf6 {[%clk
0:00:04.5]} 50. Rc7 {[%clk 0:00:31]} 50... Rb8 {[%clk 0:00:05]} 51. Rc2 {[%clk
0:00:29.5]} 51... Rb5 {[%clk 0:00:04.6]} 52. Rd2 {[%clk 0:00:29.2]} 52... Rc5
{[%clk 0:00:04.6]} 53. h4 {[%clk 0:00:29.2]} 53... Kg7 {[%clk 0:00:03.2]} 54.
Ba2 {[%clk 0:00:28.5]} 54... Kf6 {[%clk 0:00:03.3]} 55. Bd5 {[%clk 0:00:28.3]}
55... Rc7 {[%clk 0:00:03]} 56. Rd3 {[%clk 0:00:27.2]} 56... Bf8 {[%clk 0:00:03]}
57. Bb3 {[%clk 0:00:24.8]} 57... Ke5 {[%clk 0:00:02.4]} 58. Rd5+ {[%clk
0:00:23.3]} 58... Kf6 {[%clk 0:00:02.4]} 59. Rd3 {[%clk 0:00:22.7]} 59... Ke5
{[%clk 0:00:02.9]} 60. Rd5+ {[%clk 0:00:22.7]} 60... Kf6 {[%clk 0:00:03]} 61.
Rd3 {[%clk 0:00:22.3]} 1/2-1/2